[Event "Titled Tuesday Blitz March 08 Late 2022"]
[White "Dolzhykova, Kateryna"]
[Black "Tanenbaum, Zachary"]
[WhiteFideId "14113414"]
[BlackFideId "2060850"]
[WhiteElo "2454"]
[BlackElo "2691"]
[Result "1/2-1/2"]
[Round "04"]
[TimeControl "180+1"]
[Date "2022.03.09"]
[WhiteClock "0:00:04"]
[BlackClock "0:00:04"]

1. e4 {[%clk 0:02:57]}  e5 {[%clk 0:02:59]} 2. Nf3 {[%clk 0:02:57]}  Nc6 {[%clk 0:02:59]} 3. Nc3 {[%clk 0:02:57]}  Nf6 {[%clk 0:02:58]} 4. d4 {[%clk 0:02:57]}  exd4 {[%clk 0:02:58]} 5. Nxd4 {[%clk 0:02:58]}  Bb4 {[%clk 0:02:57]} 6. Nxc6 {[%clk 0:02:57]}  bxc6 {[%clk 0:02:58]} 7. Bd3 {[%clk 0:02:58]}  d5 {[%clk 0:02:57]} 8. exd5 {[%clk 0:02:56]}  O-O {[%clk 0:02:58]} 9. O-O {[%clk 0:02:53]}  cxd5 {[%clk 0:02:58]} 10. Bg5 {[%clk 0:02:53]}  c6 {[%clk 0:02:57]} 11. Qf3 {[%clk 0:02:52]}  Be7 {[%clk 0:02:56]} 12. h3 {[%clk 0:02:51]}  Rb8 {[%clk 0:02:54]} 13. b3 {[%clk 0:02:49]}  h6 {[%clk 0:02:47]} 14. Bf4 {[%clk 0:02:48]}  Bd6 {[%clk 0:02:46]} 15. Ne2 {[%clk 0:02:46]}  Be6 {[%clk 0:02:45]} 16. Nd4 {[%clk 0:02:44]}  Qd7 {[%clk 0:02:43]} 17. Rae1 {[%clk 0:02:42]}  c5 {[%clk 0:02:36]} 18. Nxe6 {[%clk 0:02:41]}  fxe6 {[%clk 0:02:36]} 19. Qg3 {[%clk 0:02:35]}  Nh5 {[%clk 0:02:35]} 20. Bxd6 {[%clk 0:02:31]}  Nxg3 {[%clk 0:02:35]} 21. Bxg3 {[%clk 0:02:32]}  Rbc8 {[%clk 0:02:28]} 22. c4 {[%clk 0:02:30]}  Kh8 {[%clk 0:02:22]} 23. Re2 {[%clk 0:02:30]}  Rf6 {[%clk 0:01:56]} 24. Rfe1 {[%clk 0:02:29]}  Rcf8 {[%clk 0:01:55]} 25. Be5 {[%clk 0:02:22]}  R6f7 {[%clk 0:01:16]} 26. Bg3 {[%clk 0:02:20]}  dxc4 {[%clk 0:01:04]} 27. Bxc4 {[%clk 0:02:20]}  Qd4 {[%clk 0:01:02]} 28. Bxe6 {[%clk 0:02:12]}  Re7 {[%clk 0:00:58]} 29. Bc4 {[%clk 0:02:11]}  Rxe2 {[%clk 0:00:57]} 30. Rxe2 {[%clk 0:02:12]}  a5 {[%clk 0:00:52]} 31. a4 {[%clk 0:02:11]}  Kh7 {[%clk 0:00:49]} 32. Kh2 {[%clk 0:02:09]}  Qd7 {[%clk 0:00:42]} 33. Re5 {[%clk 0:02:06]}  Qd4 {[%clk 0:00:36]} 34. Rd5 {[%clk 0:02:02]}  Qb2 {[%clk 0:00:34]} 35. Rxc5 {[%clk 0:01:40]}  Qd2 {[%clk 0:00:21]} 36. Rd5 {[%clk 0:01:38]}  Qe1 {[%clk 0:00:16]} 37. Bd3+ {[%clk 0:01:28]}  Kg8 {[%clk 0:00:14]} 38. Bc4 {[%clk 0:01:27]}  Kh8 {[%clk 0:00:14]} 39. Rd7 {[%clk 0:01:27]}  Qe4 {[%clk 0:00:04]} 40. Rd5 {[%clk 0:01:22]}  Qe1 {[%clk 0:00:03]} 41. Rd7 {[%clk 0:01:22]}  Re8 {[%clk 0:00:03]} 42. Ra7 {[%clk 0:01:18]}  Re7 {[%clk 0:00:03]} 43. Ra8+ {[%clk 0:01:07]}  Re8 {[%clk 0:00:03]} 44. Ra7 {[%clk 0:01:07]}  Re7 {[%clk 0:00:04]} 45. Ra8+ {[%clk 0:01:06]}  Kh7 {[%clk 0:00:04]} 46. Bd3+ {[%clk 0:01:06]}  g6 {[%clk 0:00:05]} 47. Bc4 {[%clk 0:01:05]}  h5 {[%clk 0:00:04]} 48. Bh4 {[%clk 0:01:01]}  Qe5+ {[%clk 0:00:02]} 49. Bg3 {[%clk 0:00:59]}  Qe4 {[%clk 0:00:03]} 50. Rd8 {[%clk 0:00:52]}  h4 {[%clk 0:00:03]} 51. Bd6 {[%clk 0:00:50]}  Re6 {[%clk 0:00:03]} 52. Bxe6 {[%clk 0:00:50]}  Qxe6 {[%clk 0:00:03]} 53. Bc7 {[%clk 0:00:41]}  Qxb3 {[%clk 0:00:03]} 54. Bxa5 {[%clk 0:00:33]}  Qxa4 {[%clk 0:00:04]} 55. Bd2 {[%clk 0:00:19]}  Qc6 {[%clk 0:00:03]} 56. Rd4 {[%clk 0:00:18]}  g5 {[%clk 0:00:02]} 57. Bxg5 {[%clk 0:00:14]}  Qc7+ {[%clk 0:00:02]} 58. f4 {[%clk 0:00:10]}  Kg6 {[%clk 0:00:03]} 59. Re4 {[%clk 0:00:08]}  Kf5 {[%clk 0:00:02]} 60. Re5+ {[%clk 0:00:08]}  Kg6 {[%clk 0:00:02]} 61. Re6+ {[%clk 0:00:08]}  Kf7 {[%clk 0:00:02]} 62. Rh6 {[%clk 0:00:08]}  Qc5 {[%clk 0:00:01]} 63. Rxh4 {[%clk 0:00:09]}  Kg6 {[%clk 0:00:02]} 64. Rh6+ {[%clk 0:00:09]}  Kg7 {[%clk 0:00:03]} 65. Rf6 {[%clk 0:00:09]}  Qc4 {[%clk 0:00:03]} 66. h4 {[%clk 0:00:09]}  Qd3 {[%clk 0:00:03]} 67. h5 {[%clk 0:00:08]}  Qe2 {[%clk 0:00:04]} 68. h6+ {[%clk 0:00:08]}  Kh7 {[%clk 0:00:04]} 69. Rf7+ {[%clk 0:00:08]}  Kg6 {[%clk 0:00:05]} 70. Rg7+ {[%clk 0:00:08]}  Kf5 {[%clk 0:00:05]} 71. h7 {[%clk 0:00:07]}  Qh5+ {[%clk 0:00:06]} 72. Kg3 {[%clk 0:00:07]}  Ke4 {[%clk 0:00:05]} 73. Re7+ {[%clk 0:00:06]}  Kf5 {[%clk 0:00:05]} 74. Rg7 {[%clk 0:00:05]}  Ke4 {[%clk 0:00:05]} 75. Re7+ {[%clk 0:00:05]}  Kf5 {[%clk 0:00:05]} 76. Rf7+ {[%clk 0:00:05]}  Ke4 {[%clk 0:00:05]} 77. Rg7 {[%clk 0:00:03]}  Kf5 {[%clk 0:00:05]} 78. Kf2 {[%clk 0:00:04]}  Qh1 {[%clk 0:00:04]} 79. g4+ {[%clk 0:00:03]}  Ke4 {[%clk 0:00:04]} 80. Re7+ {[%clk 0:00:03]}  Kd3 {[%clk 0:00:04]} 81. Kg3 {[%clk 0:00:03]}  Qg1+ {[%clk 0:00:04]} 82. Kh3 {[%clk 0:00:03]}  Qh1+ {[%clk 0:00:04]} 83. Kg3 {[%clk 0:00:03]}  Qg1+ {[%clk 0:00:03]} 84. Kh3 {[%clk 0:00:04]}  Qf1+ {[%clk 0:00:04]} 85. Kh2 {[%clk 0:00:03]}  Qf2+ {[%clk 0:00:04]} 86. Kh3 {[%clk 0:00:04]}  Qf3+ {[%clk 0:00:04]} 87. Kh4 {[%clk 0:00:03]}  Qh1+ {[%clk 0:00:04]} 88. Kg3 {[%clk 0:00:04]} 1/2-1/2


[Site "https://www.chess.com"]

[Event "Titled Tuesday Blitz March 08 Late 2022"]
[White "Dubov, Daniil"]
[Black "Bacrot, Etienne"]
[WhiteFideId "24126055"]
[BlackFideId "605506"]
[WhiteElo "2791"]
[BlackElo "2673"]
[Result "1-0"]
[Round "04"]
[TimeControl "180+1"]
[Date "2022.03.08"]
[WhiteClock "0:00:37"]
[BlackClock "0:00:01"]

1. d4 {[%clk 0:03:00]}  d5 {[%clk 0:02:59]} 2. Nf3 {[%clk 0:03:01]}  Nf6 {[%clk 0:02:59]} 3. c4 {[%clk 0:03:01]}  dxc4 {[%clk 0:02:59]} 4. e3 {[%clk 0:03:01]}  e6 {[%clk 0:02:59]} 5. Bxc4 {[%clk 0:03:01]}  c5 {[%clk 0:03:00]} 6. Qe2 {[%clk 0:03:00]}  a6 {[%clk 0:03:00]} 7. dxc5 {[%clk 0:03:00]}  Bxc5 {[%clk 0:02:59]} 8. O-O {[%clk 0:03:00]}  b5 {[%clk 0:02:59]} 9. Bd3 {[%clk 0:02:52]}  Bb7 {[%clk 0:02:58]} 10. Rd1 {[%clk 0:02:51]}  Qe7 {[%clk 0:02:52]} 11. a4 {[%clk 0:02:50]}  bxa4 {[%clk 0:02:48]} 12. Rxa4 {[%clk 0:02:47]}  O-O {[%clk 0:02:47]} 13. Nbd2 {[%clk 0:02:32]}  Rd8 {[%clk 0:02:41]} 14. Ne4 {[%clk 0:02:15]}  Nxe4 {[%clk 0:02:29]} 15. Bxe4 {[%clk 0:02:14]}  Rxd1+ {[%clk 0:02:28]} 16. Qxd1 {[%clk 0:02:13]}  Bxe4 {[%clk 0:02:28]} 17. Rxe4 {[%clk 0:02:13]}  Nd7 {[%clk 0:02:27]} 18. b3 {[%clk 0:02:10]}  Nb6 {[%clk 0:02:20]} 19. Bb2 {[%clk 0:01:56]}  Rd8 {[%clk 0:02:19]} 20. Qc2 {[%clk 0:01:50]}  f5 {[%clk 0:02:06]} 21. Rh4 {[%clk 0:01:49]}  Nd5 {[%clk 0:01:57]} 22. h3 {[%clk 0:01:39]}  Bxe3 {[%clk 0:01:36]} 23. fxe3 {[%clk 0:01:37]}  Nxe3 {[%clk 0:01:36]} 24. Qe2 {[%clk 0:01:24]}  Qc5 {[%clk 0:01:01]} 25. Nd4 {[%clk 0:01:02]}  f4 {[%clk 0:00:44]} 26. Nxe6 {[%clk 0:00:49]}  Qe7 {[%clk 0:00:19]} 27. Nxd8 {[%clk 0:00:48]}  Qxh4 {[%clk 0:00:18]} 28. Ne6 {[%clk 0:00:46]}  Qg3 {[%clk 0:00:12]} 29. Nxf4 {[%clk 0:00:40]}  Qxf4 {[%clk 0:00:05]} 30. Bc1 {[%clk 0:00:39]}  Qc4 {[%clk 0:00:01]} 31. bxc4 {[%clk 0:00:37]} 1-0


[Site "https://www.chess.com"]

[Event "Titled Tuesday Blitz March 08 Late 2022"]
[White "Fajdetic, Hrvoje"]
[Black "Estrada Nieto, Julian"]
[WhiteFideId "14501945"]
[BlackFideId "5101018"]
[WhiteElo "2172"]
[BlackElo "2246"]
[Result "0-1"]
[Round "04"]
[TimeControl "180+1"]
[Date "2022.03.09"]
[WhiteClock "0:00:03"]
[BlackClock "0:00:54"]

1. d4 {[%clk 0:02:56]}  d5 {[%clk 0:02:59]} 2. Bf4 {[%clk 0:02:54]}  Nf6 {[%clk 0:02:58]} 3. e3 {[%clk 0:02:55]}  c5 {[%clk 0:02:59]} 4. Nc3 {[%clk 0:02:54]}  Bg4 {[%clk 0:02:51]} 5. f3 {[%clk 0:02:53]}  Bf5 {[%clk 0:02:50]} 6. g4 {[%clk 0:02:51]}  Bg6 {[%clk 0:02:48]} 7. h4 {[%clk 0:02:50]}  h5 {[%clk 0:02:47]} 8. g5 {[%clk 0:02:46]}  Ng8 {[%clk 0:02:45]} 9. Nb5 {[%clk 0:02:43]}  Na6 {[%clk 0:02:44]} 10. c3 {[%clk 0:02:38]}  c4 {[%clk 0:02:33]} 11. Qa4 {[%clk 0:02:19]}  Qd7 {[%clk 0:02:33]} 12. b3 {[%clk 0:02:15]}  cxb3 {[%clk 0:02:13]} 13. axb3 {[%clk 0:02:12]}  Rc8 {[%clk 0:02:13]} 14. Nxa7 {[%clk 0:02:09]}  Qxa4 {[%clk 0:02:05]} 15. Rxa4 {[%clk 0:02:10]}  Rxc3 {[%clk 0:02:05]} 16. Bb5+ {[%clk 0:02:01]}  Kd8 {[%clk 0:02:02]} 17. Ne2 {[%clk 0:01:55]}  Rxb3 {[%clk 0:01:57]} 18. Bxa6 {[%clk 0:01:18]}  bxa6 {[%clk 0:01:49]} 19. Rxa6 {[%clk 0:01:00]}  Rb1+ {[%clk 0:01:44]} 20. Kf2 {[%clk 0:00:59]}  Rxh1 {[%clk 0:01:43]} 21. Nc6+ {[%clk 0:00:39]}  Kd7 {[%clk 0:01:40]} 22. Ne5+ {[%clk 0:00:37]}  Kc8 {[%clk 0:01:30]} 23. Ra7 {[%clk 0:00:17]}  Rb1 {[%clk 0:01:07]} 24. Nc6 {[%clk 0:00:17]}  Rb7 {[%clk 0:01:04]} 25. Ra8+ {[%clk 0:00:10]}  Kd7 {[%clk 0:01:04]} 26. Ne5+ {[%clk 0:00:06]}  Ke6 {[%clk 0:01:04]} 27. Rxf8 {[%clk 0:00:06]}  Rb2 {[%clk 0:00:59]} 28. Nc6 {[%clk 0:00:03]}  Bd3 {[%clk 0:00:54]} 0-1


[Site "https://www.chess.com"]

[Event "Titled Tuesday Blitz March 08 Late 2022"]
[White "Fishbein, Alexander"]
[Black "Lopez Del Alamo, Antonio"]
[WhiteFideId "2000377"]
[BlackFideId "2227339"]
[WhiteElo "2638"]
[BlackElo "2315"]
[Result "1-0"]
[Round "04"]
[TimeControl "180+1"]
[Date "2022.03.09"]
[WhiteClock "0:02:15"]
[BlackClock "0:01:35"]

1. e4 {[%clk 0:02:56]}  c5 {[%clk 0:02:57]} 2. Nf3 {[%clk 0:02:56]}  e6 {[%clk 0:02:57]} 3. d4 {[%clk 0:02:56]}  cxd4 {[%clk 0:02:56]} 4. Nxd4 {[%clk 0:02:56]}  Nf6 {[%clk 0:02:57]} 5. Nc3 {[%clk 0:02:56]}  Nc6 {[%clk 0:02:57]} 6. Ndb5 {[%clk 0:02:55]}  d6 {[%clk 0:02:47]} 7. Bf4 {[%clk 0:02:54]}  e5 {[%clk 0:02:47]} 8. Bg5 {[%clk 0:02:54]}  a6 {[%clk 0:02:48]} 9. Na3 {[%clk 0:02:54]}  b5 {[%clk 0:02:48]} 10. Nd5 {[%clk 0:02:54]}  Be7 {[%clk 0:02:48]} 11. Nxe7 {[%clk 0:02:54]}  Qxe7 {[%clk 0:02:46]} 12. c3 {[%clk 0:02:52]}  h6 {[%clk 0:02:45]} 13. Bxf6 {[%clk 0:02:52]}  Qxf6 {[%clk 0:02:44]} 14. Nc2 {[%clk 0:02:52]}  O-O {[%clk 0:02:38]} 15. Ne3 {[%clk 0:02:52]}  Ne7 {[%clk 0:02:39]} 16. a4 {[%clk 0:02:50]}  Bb7 {[%clk 0:02:34]} 17. Bd3 {[%clk 0:02:47]}  d5 {[%clk 0:02:28]} 18. exd5 {[%clk 0:02:43]}  Nxd5 {[%clk 0:02:29]} 19. Nxd5 {[%clk 0:02:37]}  Bxd5 {[%clk 0:02:30]} 20. Bh7+ {[%clk 0:02:27]}  Kxh7 {[%clk 0:02:29]} 21. Qxd5 {[%clk 0:02:28]}  Rfd8 {[%clk 0:02:04]} 22. Qe4+ {[%clk 0:02:27]}  Kg8 {[%clk 0:01:59]} 23. O-O {[%clk 0:02:26]}  Rab8 {[%clk 0:01:54]} 24. axb5 {[%clk 0:02:25]}  axb5 {[%clk 0:01:49]} 25. Rfd1 {[%clk 0:02:24]}  Rxd1+ {[%clk 0:01:46]} 26. Rxd1 {[%clk 0:02:23]}  Qe6 {[%clk 0:01:45]} 27. h3 {[%clk 0:02:19]}  Qc4 {[%clk 0:01:37]} 28. Qxe5 {[%clk 0:02:16]}  b4 {[%clk 0:01:35]} 29. Qxb8+ {[%clk 0:02:15]} 1-0


[Site "https://www.chess.com"]

[Event "Titled Tuesday Blitz March 08 Late 2022"]
[White "Hambleton, Aman"]
[Black "Moral Garcia, Serafin"]
[WhiteFideId "2606577"]
[BlackFideId "2201925"]
[WhiteElo "2663"]
[BlackElo "2449"]
[Result "1-0"]
[Round "04"]
[TimeControl "180+1"]
[Date "2022.03.09"]
[WhiteClock "0:01:40"]
[BlackClock "0:02:17"]

1. d4 {[%clk 0:02:32]}  Nf6 {[%clk 0:02:58]} 2. c4 {[%clk 0:02:26]}  g6 {[%clk 0:02:57]} 3. Nc3 {[%clk 0:02:18]}  d5 {[%clk 0:02:56]} 4. cxd5 {[%clk 0:02:13]}  Nxd5 {[%clk 0:02:56]} 5. Bd2 {[%clk 0:02:13]}  Nb6 {[%clk 0:02:53]} 6. Nf3 {[%clk 0:02:12]}  Bg7 {[%clk 0:02:52]} 7. Qc1 {[%clk 0:02:11]}  Nc6 {[%clk 0:02:47]} 8. Bh6 {[%clk 0:02:10]}  Bxh6 {[%clk 0:02:35]} 9. Qxh6 {[%clk 0:02:11]}  Nxd4 {[%clk 0:02:35]} 10. O-O-O {[%clk 0:02:08]}  c5 {[%clk 0:02:17]} 11. e3 {[%clk 0:01:40]} 1-0


[Site "https://www.chess.com"]

[Event "Titled Tuesday Blitz March 08 Late 2022"]
[White "Hollan, Martin"]
[Black "Petrova, Irina"]
[WhiteFideId "360937"]
[BlackFideId "14124122"]
[WhiteElo "2585"]
[BlackElo "2348"]
[Result "1-0"]
[Round "04"]
[TimeControl "180+1"]
[Date "2022.03.09"]
[WhiteClock "0:00:46"]
[BlackClock "0:00:20"]

1. d4 {[%clk 0:03:00]}  d6 {[%clk 0:02:59]} 2. Nf3 {[%clk 0:03:01]}  g6 {[%clk 0:02:59]} 3. h4 {[%clk 0:03:00]}  h5 {[%clk 0:02:57]} 4. Bg5 {[%clk 0:02:59]}  Bg7 {[%clk 0:02:56]} 5. e3 {[%clk 0:02:58]}  c5 {[%clk 0:02:56]} 6. c3 {[%clk 0:02:58]}  Nd7 {[%clk 0:02:53]} 7. Nbd2 {[%clk 0:02:48]}  b6 {[%clk 0:02:52]} 8. Bc4 {[%clk 0:02:47]}  Ngf6 {[%clk 0:02:30]} 9. Qb3 {[%clk 0:02:46]}  O-O {[%clk 0:02:28]} 10. O-O-O {[%clk 0:02:41]}  cxd4 {[%clk 0:02:19]} 11. exd4 {[%clk 0:02:40]}  Bb7 {[%clk 0:02:15]} 12. Rhe1 {[%clk 0:02:34]}  b5 {[%clk 0:02:03]} 13. Bxb5 {[%clk 0:02:32]}  Rb8 {[%clk 0:02:02]} 14. Qa4 {[%clk 0:02:16]}  a6 {[%clk 0:01:50]} 15. Bxd7 {[%clk 0:02:14]}  Nxd7 {[%clk 0:01:42]} 16. Bxe7 {[%clk 0:02:10]}  Qb6 {[%clk 0:01:42]} 17. Nc4 {[%clk 0:02:09]}  Bh6+ {[%clk 0:01:38]} 18. Ng5 {[%clk 0:02:06]}  Qc7 {[%clk 0:01:31]} 19. Bxd6 {[%clk 0:01:58]}  Qc8 {[%clk 0:01:16]} 20. Bxb8 {[%clk 0:01:52]}  Nxb8 {[%clk 0:01:17]} 21. Nd6 {[%clk 0:01:47]}  Qc7 {[%clk 0:01:08]} 22. Nxf7 {[%clk 0:01:43]}  Qxf7 {[%clk 0:01:00]} 23. Kb1 {[%clk 0:01:17]}  Qf5+ {[%clk 0:00:57]} 24. Ka1 {[%clk 0:01:15]}  Bxg5 {[%clk 0:00:52]} 25. hxg5 {[%clk 0:01:14]}  Bxg2 {[%clk 0:00:52]} 26. Re8 {[%clk 0:01:09]}  Nc6 {[%clk 0:00:46]} 27. Rxf8+ {[%clk 0:01:06]}  Qxf8 {[%clk 0:00:38]} 28. d5 {[%clk 0:01:05]}  Nd8 {[%clk 0:00:30]} 29. d6 {[%clk 0:00:56]}  Bc6 {[%clk 0:00:28]} 30. Qxa6 {[%clk 0:00:52]}  Qf3 {[%clk 0:00:20]} 31. Qd3 {[%clk 0:00:47]}  Qxd1+ {[%clk 0:00:20]} 32. Qxd1 {[%clk 0:00:47]}  h4 {[%clk 0:00:20]} 33. Qg4 {[%clk 0:00:46]} 1-0


[Site "https://www.chess.com"]

[Event "Titled Tuesday Blitz March 08 Late 2022"]
[White "Holt, Conrad"]
[Black "Vusatiuk, Vladimir"]
[WhiteFideId "2034387"]
[BlackFideId "14118610"]
[WhiteElo "2586"]
[BlackElo "2157"]
[Result "1-0"]
[Round "04"]
[TimeControl "180+1"]
[Date "2022.03.08"]
[WhiteClock "0:00:05"]
[BlackClock "0:00:02"]

1. d4 {[%clk 0:02:55]}  d5 {[%clk 0:02:59]} 2. c4 {[%clk 0:02:56]}  e6 {[%clk 0:02:58]} 3. Nc3 {[%clk 0:02:56]}  Nf6 {[%clk 0:02:56]} 4. cxd5 {[%clk 0:02:52]}  exd5 {[%clk 0:02:55]} 5. Bg5 {[%clk 0:02:52]}  Be7 {[%clk 0:02:51]} 6. e3 {[%clk 0:02:52]}  c6 {[%clk 0:02:47]} 7. Qc2 {[%clk 0:02:51]}  O-O {[%clk 0:02:39]} 8. Bd3 {[%clk 0:02:50]}  Nbd7 {[%clk 0:02:37]} 9. Nge2 {[%clk 0:02:39]}  Re8 {[%clk 0:02:33]} 10. O-O {[%clk 0:02:26]}  Nf8 {[%clk 0:02:25]} 11. Rab1 {[%clk 0:01:57]}  g6 {[%clk 0:02:20]} 12. f3 {[%clk 0:01:47]}  Ne6 {[%clk 0:02:17]} 13. Bh6 {[%clk 0:01:42]}  c5 {[%clk 0:02:02]} 14. Qd2 {[%clk 0:01:29]}  cxd4 {[%clk 0:01:54]} 15. exd4 {[%clk 0:01:29]}  Ng7 {[%clk 0:01:39]} 16. g4 {[%clk 0:01:25]}  Ne6 {[%clk 0:01:21]} 17. Rbe1 {[%clk 0:01:19]}  Bd7 {[%clk 0:00:59]} 18. g5 {[%clk 0:01:05]}  Nh5 {[%clk 0:00:57]} 19. f4 {[%clk 0:00:59]}  Bc6 {[%clk 0:00:49]} 20. Bc2 {[%clk 0:00:18]}  b5 {[%clk 0:00:37]} 21. Ng3 {[%clk 0:00:15]}  Nhg7 {[%clk 0:00:35]} 22. h4 {[%clk 0:00:13]}  b4 {[%clk 0:00:25]} 23. Nce2 {[%clk 0:00:14]}  f5 {[%clk 0:00:22]} 24. Rf3 {[%clk 0:00:04]}  Bb5 {[%clk 0:00:19]} 25. Re3 {[%clk 0:00:03]}  Bd6 {[%clk 0:00:19]} 26. h5 {[%clk 0:00:02]}  Nxf4 {[%clk 0:00:17]} 27. Nxf4 {[%clk 0:00:01]}  Bxf4 {[%clk 0:00:07]} 28. Rxe8+ {[%clk 0:00:01]}  Nxe8 {[%clk 0:00:08]} 29. Qxf4 {[%clk 0:00:01]}  Nc7 {[%clk 0:00:08]} 30. hxg6 {[%clk 0:00:02]}  hxg6 {[%clk 0:00:08]} 31. Nxf5 {[%clk 0:00:02]}  gxf5 {[%clk 0:00:08]} 32. Qxf5 {[%clk 0:00:03]}  Qd7 {[%clk 0:00:09]} 33. Qg6+ {[%clk 0:00:03]}  Kh8 {[%clk 0:00:08]} 34. Qf6+ {[%clk 0:00:03]}  Kg8 {[%clk 0:00:08]} 35. Bf5 {[%clk 0:00:04]}  Qf7 {[%clk 0:00:06]} 36. Bg6 {[%clk 0:00:04]}  Qxf6 {[%clk 0:00:06]} 37. gxf6 {[%clk 0:00:05]}  Be8 {[%clk 0:00:06]} 38. Rxe8+ {[%clk 0:00:04]}  Nxe8 {[%clk 0:00:03]} 39. f7+ {[%clk 0:00:05]}  Kh8 {[%clk 0:00:02]} 40. f8=Q# {[%clk 0:00:05]} 1-0


[Site "https://www.chess.com"]

[Event "Titled Tuesday Blitz March 08 Late 2022"]
[White "Ibarra Jerez, Jose Carlos"]
[Black "Svane, Rasmus"]
[WhiteFideId "2226332"]
[BlackFideId "4657101"]
[WhiteElo "2626"]
[BlackElo "2645"]
[Result "0-1"]
[Round "04"]
[TimeControl "180+1"]
[Date "2022.03.08"]
[WhiteClock "0:00:03"]
[BlackClock "0:00:06"]

1. Nf3 {[%clk 0:03:00]}  d5 {[%clk 0:02:59]} 2. g3 {[%clk 0:03:01]}  Nf6 {[%clk 0:02:59]} 3. Bg2 {[%clk 0:03:00]}  e6 {[%clk 0:02:59]} 4. O-O {[%clk 0:03:01]}  Be7 {[%clk 0:03:00]} 5. c4 {[%clk 0:03:01]}  O-O {[%clk 0:03:01]} 6. b3 {[%clk 0:03:01]}  d4 {[%clk 0:03:01]} 7. Ne5 {[%clk 0:02:50]}  Bd6 {[%clk 0:02:54]} 8. Nd3 {[%clk 0:02:42]}  Nc6 {[%clk 0:02:26]} 9. c5 {[%clk 0:02:38]}  Be7 {[%clk 0:02:26]} 10. b4 {[%clk 0:02:39]}  a6 {[%clk 0:02:24]} 11. Na3 {[%clk 0:02:32]}  a5 {[%clk 0:02:14]} 12. bxa5 {[%clk 0:02:03]}  Nxa5 {[%clk 0:02:04]} 13. Qc2 {[%clk 0:01:57]}  Bd7 {[%clk 0:02:00]} 14. Ne5 {[%clk 0:01:53]}  Nc6 {[%clk 0:01:58]} 15. Nac4 {[%clk 0:01:39]}  Bxc5 {[%clk 0:01:51]} 16. Nxc6 {[%clk 0:01:36]}  Bxc6 {[%clk 0:01:51]} 17. Bxc6 {[%clk 0:01:33]}  bxc6 {[%clk 0:01:51]} 18. d3 {[%clk 0:01:30]}  Nd5 {[%clk 0:01:45]} 19. Bd2 {[%clk 0:01:29]}  Bb4 {[%clk 0:01:42]} 20. Bxb4 {[%clk 0:01:22]}  Nxb4 {[%clk 0:01:43]} 21. Qb2 {[%clk 0:01:23]}  c5 {[%clk 0:01:40]} 22. Rfc1 {[%clk 0:01:10]}  Nd5 {[%clk 0:01:39]} 23. Nd2 {[%clk 0:01:08]}  Nc3 {[%clk 0:01:35]} 24. Ne4 {[%clk 0:00:57]}  Nxe4 {[%clk 0:01:35]} 25. dxe4 {[%clk 0:00:57]}  Ra5 {[%clk 0:01:34]} 26. Rc4 {[%clk 0:00:51]}  Qa8 {[%clk 0:01:34]} 27. a4 {[%clk 0:00:40]}  Qxe4 {[%clk 0:01:30]} 28. Rac1 {[%clk 0:00:40]}  h5 {[%clk 0:00:52]} 29. Rxc5 {[%clk 0:00:30]}  Rxc5 {[%clk 0:00:53]} 30. Rxc5 {[%clk 0:00:30]}  h4 {[%clk 0:00:53]} 31. Qc2 {[%clk 0:00:26]}  Qxc2 {[%clk 0:00:32]} 32. Rxc2 {[%clk 0:00:27]}  hxg3 {[%clk 0:00:32]} 33. hxg3 {[%clk 0:00:27]}  Rc8 {[%clk 0:00:22]} 34. Rc4 {[%clk 0:00:15]}  c5 {[%clk 0:00:19]} 35. e3 {[%clk 0:00:10]}  e5 {[%clk 0:00:16]} 36. f4 {[%clk 0:00:08]}  f6 {[%clk 0:00:16]} 37. fxe5 {[%clk 0:00:08]}  fxe5 {[%clk 0:00:17]} 38. Kf2 {[%clk 0:00:07]}  Kf7 {[%clk 0:00:18]} 39. Kf3 {[%clk 0:00:07]}  Ke6 {[%clk 0:00:17]} 40. Ke4 {[%clk 0:00:08]}  Kd6 {[%clk 0:00:17]} 41. g4 {[%clk 0:00:08]}  Ra8 {[%clk 0:00:16]} 42. g5 {[%clk 0:00:04]}  g6 {[%clk 0:00:16]} 43. Kd3 {[%clk 0:00:02]}  Kd5 {[%clk 0:00:15]} 44. e4+ {[%clk 0:00:03]}  Kc6 {[%clk 0:00:14]} 45. Kc2 {[%clk 0:00:04]}  Rf8 {[%clk 0:00:12]} 46. Kb3 {[%clk 0:00:02]}  Rf3+ {[%clk 0:00:12]} 47. Kb2 {[%clk 0:00:03]}  Re3 {[%clk 0:00:12]} 48. a5 {[%clk 0:00:03]}  Kb5 {[%clk 0:00:10]} 49. a6 {[%clk 0:00:03]}  Kxa6 {[%clk 0:00:04]} 50. Rxc5 {[%clk 0:00:03]}  Rxe4 {[%clk 0:00:04]} 51. Rc6+ {[%clk 0:00:04]}  Kb5 {[%clk 0:00:05]} 52. Rxg6 {[%clk 0:00:05]}  Rg4 {[%clk 0:00:04]} 53. Rg8 {[%clk 0:00:05]}  Kc4 {[%clk 0:00:05]} 54. g6 {[%clk 0:00:06]}  Kd3 {[%clk 0:00:05]} 55. g7 {[%clk 0:00:06]}  e4 {[%clk 0:00:06]} 56. Kb3 {[%clk 0:00:05]}  e3 {[%clk 0:00:06]} 57. Kb4 {[%clk 0:00:06]}  e2 {[%clk 0:00:06]} 58. Re8 {[%clk 0:00:03]}  Rxg7 {[%clk 0:00:06]} 0-1


[Site "https://www.chess.com"]

[Event "Titled Tuesday Blitz March 08 Late 2022"]
[White "Iskusnyh, Sergei"]
[Black "Gulecyuz, Deniz"]
[WhiteFideId "4120027"]
[BlackFideId "30921341"]
[WhiteElo "2492"]
[BlackElo "1923"]
[Result "1-0"]
[Round "04"]
[TimeControl "180+1"]
[Date "2022.03.09"]
[WhiteClock "0:00:27"]
[BlackClock "0:00:11"]

1. d4 {[%clk 0:02:45]}  Nf6 {[%clk 0:02:59]} 2. c4 {[%clk 0:02:43]}  g6 {[%clk 0:02:59]} 3. g3 {[%clk 0:02:42]}  Bg7 {[%clk 0:02:59]} 4. Bg2 {[%clk 0:02:43]}  c5 {[%clk 0:02:58]} 5. dxc5 {[%clk 0:02:42]}  Na6 {[%clk 0:02:59]} 6. Nc3 {[%clk 0:02:41]}  O-O {[%clk 0:02:54]} 7. e4 {[%clk 0:02:40]}  Nxc5 {[%clk 0:02:48]} 8. e5 {[%clk 0:02:40]}  Ne8 {[%clk 0:02:45]} 9. Be3 {[%clk 0:02:39]}  Ne6 {[%clk 0:02:39]} 10. Nf3 {[%clk 0:02:34]}  d6 {[%clk 0:02:38]} 11. exd6 {[%clk 0:02:23]}  Nxd6 {[%clk 0:02:38]} 12. Qe2 {[%clk 0:01:34]}  Qa5 {[%clk 0:02:06]} 13. O-O {[%clk 0:01:33]}  Bxc3 {[%clk 0:01:53]} 14. bxc3 {[%clk 0:01:32]}  Qxc3 {[%clk 0:01:54]} 15. Rac1 {[%clk 0:01:30]}  Qa5 {[%clk 0:01:42]} 16. Qb2 {[%clk 0:01:05]}  Nf5 {[%clk 0:01:15]} 17. Bd2 {[%clk 0:01:03]}  Qa6 {[%clk 0:01:09]} 18. Rfe1 {[%clk 0:00:57]}  Rd8 {[%clk 0:01:03]} 19. Bb4 {[%clk 0:00:53]}  h5 {[%clk 0:00:52]} 20. Ne5 {[%clk 0:00:51]}  Ned4 {[%clk 0:00:39]} 21. Bc3 {[%clk 0:00:40]}  Qf6 {[%clk 0:00:36]} 22. Bd5 {[%clk 0:00:37]}  e6 {[%clk 0:00:25]} 23. Bg2 {[%clk 0:00:35]}  Rb8 {[%clk 0:00:23]} 24. Rcd1 {[%clk 0:00:35]}  Bd7 {[%clk 0:00:16]} 25. Bxd4 {[%clk 0:00:33]}  Nxd4 {[%clk 0:00:16]} 26. Rxd4 {[%clk 0:00:33]}  Ba4 {[%clk 0:00:17]} 27. Rf4 {[%clk 0:00:33]}  Qg7 {[%clk 0:00:17]} 28. Rxf7 {[%clk 0:00:33]}  Qh8 {[%clk 0:00:17]} 29. Qc1 {[%clk 0:00:29]}  Be8 {[%clk 0:00:13]} 30. Rc7 {[%clk 0:00:27]}  b6 {[%clk 0:00:11]} 31. Qg5 {[%clk 0:00:27]} 1-0


[Site "https://www.chess.com"]